[Event "*** Titled Tuesday Blitz"]
[Site "Chess.com"]
[Date "2021.02.09"]
[Round "10"]
[White "agartha01"]
[Black "NiranjanNavalgund"]
[Result "1-0"]
[WhiteElo "2383"]
[BlackElo "2498"]
[TimeControl "180+1"]
[EndTime "11:56:32 PST"]
[Termination "agartha01 won by resignation"]

1. d4 {[%clk 0:03:00.9]} 1... Nf6 {[%clk 0:03:00]} 2. Bf4 {[%clk 0:02:59.7]}
2... g6 {[%clk 0:02:58.2]} 3. e3 {[%clk 0:02:59.5]} 3... Bg7 {[%clk 0:02:58.2]}
4. Nf3 {[%clk 0:02:59.8]} 4... O-O {[%clk 0:02:58.6]} 5. c3 {[%clk 0:03:00.1]}
5... d6 {[%clk 0:02:59.5]} 6. Nbd2 {[%clk 0:03:00.4]} 6... Nfd7 {[%clk
0:03:00.4]} 7. h3 {[%clk 0:03:00.1]} 7... e5 {[%clk 0:03:00.7]} 8. Bh2 {[%clk
0:03:00.2]} 8... f5 {[%clk 0:03:01.6]} 9. Bc4+ {[%clk 0:02:59.8]} 9... Kh8
{[%clk 0:03:01.8]} 10. dxe5 {[%clk 0:03:00]} 10... Nxe5 {[%clk 0:03:01.8]} 11.
Nxe5 {[%clk 0:02:59.5]} 11... Bxe5 {[%clk 0:03:02.2]} 12. Bxe5+ {[%clk
0:02:59.2]} 12... dxe5 {[%clk 0:03:03.1]} 13. Nf3 {[%clk 0:02:59.7]} 13... Nc6
{[%clk 0:03:03.1]} 14. Qxd8 {[%clk 0:02:58.1]} 14... Rxd8 {[%clk 0:03:04]} 15.
e4 {[%clk 0:02:50.2]} 15... Kg7 {[%clk 0:02:58.4]} 16. Ke2 {[%clk 0:02:42.2]}
16... h6 {[%clk 0:02:50.7]} 17. Rhd1 {[%clk 0:02:38.9]} 17... Rxd1 {[%clk
0:02:47.2]} 18. Rxd1 {[%clk 0:02:38.9]} 18... fxe4 {[%clk 0:02:48.1]} 19. Nd2
{[%clk 0:02:36.3]} 19... e3 {[%clk 0:02:15.8]} 20. Kxe3 {[%clk 0:02:35.6]} 20...
Bf5 {[%clk 0:02:14.5]} 21. g4 {[%clk 0:02:26.8]} 21... Bd7 {[%clk 0:02:09.9]}
22. Ne4 {[%clk 0:02:26.7]} 22... Be8 {[%clk 0:02:09.8]} 23. Nc5 {[%clk
0:02:24.9]} 23... Kf6 {[%clk 0:01:56.4]} 24. Nxb7 {[%clk 0:02:01]} 24... Rb8
{[%clk 0:01:56.2]} 25. Nc5 {[%clk 0:02:00.1]} 25... Rxb2 {[%clk 0:01:55.6]} 26.
Bb3 {[%clk 0:01:59]} 26... Na5 {[%clk 0:01:45.5]} 27. Nd3 {[%clk 0:01:50.1]}
27... Rxb3 {[%clk 0:01:45.4]} 28. axb3 {[%clk 0:01:49]} 28... Nxb3 {[%clk
0:01:46.3]} 29. Rb1 {[%clk 0:01:45.2]} 29... Bf7 {[%clk 0:01:43.5]} 30. Nc1
{[%clk 0:01:29.7]} 30... Nc5 {[%clk 0:01:43.2]} 31. Rb8 {[%clk 0:01:23.7]} 31...
Ke7 {[%clk 0:01:39.3]} 32. Nd3 {[%clk 0:01:16.7]} 32... Nd7 {[%clk 0:01:06]} 33.
Rb7 {[%clk 0:01:14.9]} 33... Kd6 {[%clk 0:01:05.1]} 34. Rxa7 {[%clk 0:01:13.6]}
34... Nb6 {[%clk 0:01:05.3]} 35. Ra1 {[%clk 0:01:03.4]} 35... Bc4 {[%clk
0:00:56.9]} 36. Rd1 {[%clk 0:00:59.8]} 36... Bb3 {[%clk 0:00:57.2]} 37. Rb1
{[%clk 0:00:54.8]} 37... Nc4+ {[%clk 0:00:57.5]} 38. Ke2 {[%clk 0:00:53.6]}
38... Bc2 {[%clk 0:00:54.6]} 39. Rc1 {[%clk 0:00:49.7]} 39... Bb3 {[%clk
0:00:54.4]} 40. f4 {[%clk 0:00:44.6]} 40... e4 {[%clk 0:00:54.2]} 41. Nf2 {[%clk
0:00:39.7]} 41... Kd5 {[%clk 0:00:53.1]} 42. Rb1 {[%clk 0:00:34.4]} 42... Bc2
{[%clk 0:00:48.9]} 43. Rb5+ {[%clk 0:00:33.3]} 43... c5 {[%clk 0:00:48.7]} 44.
Rb8 {[%clk 0:00:26.8]} 44... Nd6 {[%clk 0:00:43.3]} 45. Rh8 {[%clk 0:00:19.5]}
45... Ba4 {[%clk 0:00:41.4]} 46. Rxh6 {[%clk 0:00:18.6]} 46... Bb5+ {[%clk
0:00:41.7]} 47. Ke1 {[%clk 0:00:14.7]} 47... e3 {[%clk 0:00:41.6]} 48. Nd1
{[%clk 0:00:14.5]} 48... Ke4 {[%clk 0:00:39.5]} 49. Rxg6 {[%clk 0:00:13]} 49...
Nc4 {[%clk 0:00:39.5]} 50. f5 {[%clk 0:00:11.4]} 50... Ne5 {[%clk 0:00:36.1]}
51. Re6 {[%clk 0:00:11.5]} 51... Kf4 {[%clk 0:00:35.7]} 52. Rxe5 {[%clk
0:00:10.9]} 52... Kxe5 {[%clk 0:00:34.8]} 53. Nxe3 {[%clk 0:00:11.5]} 53... Kf4
{[%clk 0:00:34.7]} 54. Kf2 {[%clk 0:00:11.2]} 54... Bd3 {[%clk 0:00:34]} 55. h4
{[%clk 0:00:09.5]} 55... c4 {[%clk 0:00:33.4]} 56. g5 {[%clk 0:00:09.7]} 56...
Ke5 {[%clk 0:00:33.2]} 57. f6 {[%clk 0:00:09.9]} 57... Bg6 {[%clk 0:00:32.7]}
58. Nf1 {[%clk 0:00:07.9]} 58... Kf4 {[%clk 0:00:32]} 59. Ng3 {[%clk 0:00:06.1]}
59... Kg4 {[%clk 0:00:32]} 60. h5 {[%clk 0:00:06.4]} 60... Kxg5 {[%clk
0:00:31.1]} 61. hxg6 {[%clk 0:00:06.4]} 61... Kxf6 {[%clk 0:00:31.3]} 62. Ne4+
{[%clk 0:00:07.1]} 62... Kxg6 {[%clk 0:00:31.6]} 63. Ke3 {[%clk 0:00:07.6]}
63... Kf5 {[%clk 0:00:31.9]} 64. Kd4 {[%clk 0:00:08.2]} 64... Kf4 {[%clk
0:00:32.5]} 65. Nd2 {[%clk 0:00:08.3]} 65... Kf5 {[%clk 0:00:32.7]} 66. Nxc4
{[%clk 0:00:08.7]} 66... Ke6 {[%clk 0:00:33.6]} 67. Kc5 {[%clk 0:00:09.2]} 67...
Kd7 {[%clk 0:00:34.5]} 68. Ne5+ {[%clk 0:00:09.1]} 68... Kc7 {[%clk 0:00:35.4]}
69. c4 {[%clk 0:00:09.6]} 69... Kb7 {[%clk 0:00:35.7]} 70. Kd6 {[%clk
0:00:09.8]} 70... Kb6 {[%clk 0:00:36.2]} 71. c5+ {[%clk 0:00:09.9]} 71... Kb7
{[%clk 0:00:36.8]} 72. Kd7 {[%clk 0:00:10.3]} 72... Kb8 {[%clk 0:00:36.7]} 73.
c6 {[%clk 0:00:10.8]} 73... Ka7 {[%clk 0:00:37.1]} 74. Nf3 {[%clk 0:00:11.2]}
74... Kb6 {[%clk 0:00:37.4]} 75. c7 {[%clk 0:00:11.4]} 75... Ka7 {[%clk
0:00:37.8]} 76. c8=Q {[%clk 0:00:11.6]} 76... Kb6 {[%clk 0:00:38.2]} 77. Qc4
{[%clk 0:00:11.1]} 1-0

[Event "*** Titled Tuesday Blitz"]
[Site "Chess.com"]
[Date "2021.02.09"]
[Round "10"]
[White "Sokoloco"]
[Black "kakorrhaphiophobie"]
[Result "0-1"]
[WhiteElo "2442"]
[BlackElo "2341"]
[TimeControl "180+1"]
[EndTime "11:56:36 PST"]
[Termination "kakorrhaphiophobie won by resignation"]

1. b3 {[%clk 0:03:00.9]} 1... d5 {[%clk 0:02:25.7]} 2. Bb2 {[%clk 0:03:00.2]}
2... Bg4 {[%clk 0:02:24.9]} 3. h3 {[%clk 0:02:55.4]} 3... Bh5 {[%clk 0:02:24.3]}
4. g4 {[%clk 0:02:56]} 4... Bg6 {[%clk 0:02:24.3]} 5. Nf3 {[%clk 0:02:56.7]}
5... e6 {[%clk 0:02:23.7]} 6. Bg2 {[%clk 0:02:56.5]} 6... c6 {[%clk 0:02:23.7]}
7. Ne5 {[%clk 0:02:52.3]} 7... Ne7 {[%clk 0:02:20.5]} 8. O-O {[%clk 0:02:48.4]}
8... Nd7 {[%clk 0:02:20.8]} 9. Nxg6 {[%clk 0:02:45.5]} 9... Nxg6 {[%clk
0:02:19.9]} 10. f4 {[%clk 0:02:38.3]} 10... Qc7 {[%clk 0:02:15.8]} 11. e3 {[%clk
0:02:37.6]} 11... h5 {[%clk 0:02:15.2]} 12. g5 {[%clk 0:02:36.8]} 12... Nh4
{[%clk 0:02:11.8]} 13. c4 {[%clk 0:02:23.7]} 13... Nxg2 {[%clk 0:02:10.4]} 14.
Kxg2 {[%clk 0:02:24.1]} 14... h4 {[%clk 0:02:07.5]} 15. cxd5 {[%clk 0:02:22.8]}
15... exd5 {[%clk 0:02:03.7]} 16. Nc3 {[%clk 0:02:20.5]} 16... O-O-O {[%clk
0:02:02.8]} 17. Rc1 {[%clk 0:02:20.6]} 17... Qd6 {[%clk 0:01:49.6]} 18. Nb5
{[%clk 0:02:01.3]} 18... Qe6 {[%clk 0:01:44.2]} 19. Qf3 {[%clk 0:01:56.4]} 19...
Kb8 {[%clk 0:01:38.1]} 20. f5 {[%clk 0:01:55.1]} 20... Qe4 {[%clk 0:01:36.3]}
21. Qxe4 {[%clk 0:01:54.3]} 21... dxe4 {[%clk 0:01:36.6]} 22. Nc3 {[%clk
0:01:54.7]} 22... Rh5 {[%clk 0:01:35.7]} 23. Nxe4 {[%clk 0:01:50.1]} 23... Re8
{[%clk 0:01:21.5]} 24. Rf4 {[%clk 0:01:46]} 24... Ne5 {[%clk 0:01:13.9]} 25.
Bxe5+ {[%clk 0:01:39.4]} 25... Rxe5 {[%clk 0:01:13.8]} 26. Kf3 {[%clk
0:01:32.8]} 26... Ba3 {[%clk 0:01:07.9]} 27. Rc3 {[%clk 0:01:18.3]} 27... Rh7
{[%clk 0:01:07.9]} 28. Rd3 {[%clk 0:01:15.6]} 28... Kc7 {[%clk 0:01:06.1]} 29.
g6 {[%clk 0:01:09.5]} 29... fxg6 {[%clk 0:00:56.4]} 30. fxg6 {[%clk 0:01:10.4]}
30... Rh6 {[%clk 0:00:55.8]} 31. Rf7+ {[%clk 0:01:09.4]} 31... Re7 {[%clk
0:00:56.4]} 32. b4 {[%clk 0:00:39.5]} 32... Bxb4 {[%clk 0:00:54.9]} 33. Rb3
{[%clk 0:00:40.1]} 33... Rxf7+ {[%clk 0:00:51.8]} 34. gxf7 {[%clk 0:00:40]}
34... Be7 {[%clk 0:00:39.9]} 35. Rb1 {[%clk 0:00:34.7]} 35... Rh5 {[%clk
0:00:32.4]} 36. Kg4 {[%clk 0:00:30.6]} 36... Rh8 {[%clk 0:00:28.4]} 37. Rf1
{[%clk 0:00:28.9]} 37... Rf8 {[%clk 0:00:28.4]} 38. Kh5 {[%clk 0:00:26.7]} 38...
a5 {[%clk 0:00:13]} 39. Kg6 {[%clk 0:00:24.5]} 39... a4 {[%clk 0:00:13.2]} 40.
Kxg7 {[%clk 0:00:22.7]} 40... b5 {[%clk 0:00:13.2]} 41. Ng5 {[%clk 0:00:22.7]}
41... Kb6 {[%clk 0:00:12.5]} 42. Ne6 {[%clk 0:00:21.9]} 42... Rc8 {[%clk
0:00:11.5]} 43. f8=Q {[%clk 0:00:12.6]} 43... Bxf8+ {[%clk 0:00:11.6]} 44. Nxf8
{[%clk 0:00:13.5]} 44... b4 {[%clk 0:00:11.9]} 45. Ne6 {[%clk 0:00:12.6]} 45...
c5 {[%clk 0:00:10.5]} 46. Rb1 {[%clk 0:00:10.8]} 46... Kb5 {[%clk 0:00:10.8]}
47. d3 {[%clk 0:00:09.7]} 47... Re8 {[%clk 0:00:08.9]} 48. Kf6 {[%clk
0:00:08.7]} 48... Rg8 {[%clk 0:00:09.4]} 49. Ng5 {[%clk 0:00:07.9]} 49... Rd8
{[%clk 0:00:09.2]} 50. d4 {[%clk 0:00:03.4]} 50... c4 {[%clk 0:00:09.4]} 51. Ne6
{[%clk 0:00:03.7]} 51... Rc8 {[%clk 0:00:07.6]} 52. Ke5 {[%clk 0:00:03.2]} 52...
c3 {[%clk 0:00:06.5]} 53. d5 {[%clk 0:00:03.8]} 53... Kc4 {[%clk 0:00:06.9]} 54.
Nd4 {[%clk 0:00:03.8]} 54... Re8+ {[%clk 0:00:04.4]} 55. Ne6 {[%clk 0:00:04.3]}
55... b3 {[%clk 0:00:04.1]} 56. d6 {[%clk 0:00:02.7]} 56... c2 {[%clk 0:00:04]}
57. Rc1 {[%clk 0:00:03.2]} 57... Kc3 {[%clk 0:00:03.6]} 58. d7 {[%clk
0:00:01.8]} 58... Ra8 {[%clk 0:00:03.4]} 59. Kd6 {[%clk 0:00:01.9]} 59... b2
{[%clk 0:00:03.3]} 60. Rxc2+ {[%clk 0:00:02.1]} 60... Kxc2 {[%clk 0:00:03.3]}
61. Nd4+ {[%clk 0:00:03]} 61... Kc1 {[%clk 0:00:03.8]} 62. Ne2+ {[%clk
0:00:03.1]} 62... Kd2 {[%clk 0:00:03.7]} 0-1

[Event "*** Titled Tuesday Blitz"]
[Site "Chess.com"]
[Date "2021.02.09"]
[Round "10"]
[White "Taran2004"]
[Black "Dii210"]
[Result "0-1"]
[WhiteElo "2468"]
[BlackElo "2361"]
[TimeControl "180+1"]
[EndTime "11:56:50 PST"]
[Termination "Dii210 won by resignation"]

1. Nf3 {[%clk 0:03:00.9]} 1... d5 {[%clk 0:02:58.7]} 2. g3 {[%clk 0:03:00.8]}
2... Nf6 {[%clk 0:02:58]} 3. Bg2 {[%clk 0:03:01]} 3... c5 {[%clk 0:02:58.5]} 4.
O-O {[%clk 0:03:01.3]} 4... Nc6 {[%clk 0:02:58.7]} 5. c4 {[%clk 0:03:01.8]} 5...
d4 {[%clk 0:02:58.4]} 6. d3 {[%clk 0:03:02.2]} 6... e5 {[%clk 0:02:58.1]} 7. a3
{[%clk 0:03:02.6]} 7... Bd6 {[%clk 0:02:56.7]} 8. b4 {[%clk 0:03:02.3]} 8...
cxb4 {[%clk 0:02:56.2]} 9. axb4 {[%clk 0:03:00.9]} 9... Nxb4 {[%clk 0:02:56.2]}
10. Ba3 {[%clk 0:03:00.2]} 10... Nc6 {[%clk 0:02:55.9]} 11. Qa4 {[%clk 0:02:55]}
11... O-O {[%clk 0:02:54.8]} 12. Nbd2 {[%clk 0:02:53.5]} 12... Be6 {[%clk
0:02:50]} 13. Ng5 {[%clk 0:02:43.7]} 13... Bxa3 {[%clk 0:02:33.3]} 14. Rxa3
{[%clk 0:02:25.8]} 14... Bd7 {[%clk 0:02:31.2]} 15. Qb3 {[%clk 0:02:24.4]} 15...
h6 {[%clk 0:02:25.6]} 16. Nge4 {[%clk 0:02:24.1]} 16... Nxe4 {[%clk 0:02:25.4]}
17. Nxe4 {[%clk 0:02:25]} 17... Qc7 {[%clk 0:02:24.1]} 18. Rfa1 {[%clk
0:02:18.3]} 18... b6 {[%clk 0:02:22.8]} 19. Rc1 {[%clk 0:02:10.7]} 19... f5
{[%clk 0:02:20.8]} 20. Nd6 {[%clk 0:01:50.4]} 20... Kh7 {[%clk 0:02:01.7]} 21.
Nb5 {[%clk 0:01:49.3]} 21... Qd8 {[%clk 0:01:52.7]} 22. Rca1 {[%clk 0:01:43.8]}
22... a5 {[%clk 0:01:49]} 23. e3 {[%clk 0:01:16.6]} 23... dxe3 {[%clk
0:01:46.9]} 24. fxe3 {[%clk 0:01:16]} 24... Rb8 {[%clk 0:01:47.2]} 25. Rf1
{[%clk 0:01:11]} 25... Nb4 {[%clk 0:01:40.2]} 26. Qb1 {[%clk 0:00:48.9]} 26...
Bxb5 {[%clk 0:01:38.2]} 27. cxb5 {[%clk 0:00:48.5]} 27... g6 {[%clk 0:01:35.2]}
28. g4 {[%clk 0:00:46]} 28... Qg5 {[%clk 0:01:29.6]} 29. gxf5 {[%clk 0:00:42.3]}
29... Qxe3+ {[%clk 0:01:27.8]} 30. Kh1 {[%clk 0:00:42.6]} 30... gxf5 {[%clk
0:01:24.4]} 31. Rc3 {[%clk 0:00:40.7]} 31... Rf7 {[%clk 0:01:14.6]} 32. Re1
{[%clk 0:00:37.1]} 32... Qd4 {[%clk 0:01:08.9]} 33. Rc4 {[%clk 0:00:30.1]} 33...
Qxd3 {[%clk 0:01:07.3]} 34. Rxb4 {[%clk 0:00:30.5]} 34... Qc3 {[%clk 0:00:55.9]}
35. Rb3 {[%clk 0:00:28.7]} 35... Qc5 {[%clk 0:00:51.7]} 36. Rf3 {[%clk
0:00:28.5]} 36... Rbf8 {[%clk 0:00:26.8]} 37. Rc1 {[%clk 0:00:21.3]} 37... Qd4
{[%clk 0:00:18.8]} 38. Rc6 {[%clk 0:00:20.6]} 38... e4 {[%clk 0:00:18.8]} 39.
Rh3 {[%clk 0:00:20.8]} 39... Rf6 {[%clk 0:00:18.9]} 40. Rxf6 {[%clk 0:00:21.1]}
40... Rxf6 {[%clk 0:00:19.1]} 41. Qc1 {[%clk 0:00:21.6]} 41... f4 {[%clk
0:00:18.3]} 42. Qc7+ {[%clk 0:00:18.9]} 42... Kg6 {[%clk 0:00:18.7]} 43. Qc2
{[%clk 0:00:14.9]} 43... Re6 {[%clk 0:00:16]} 44. Rc3 {[%clk 0:00:10.9]} 44...
Qe5 {[%clk 0:00:12.2]} 45. Rc6 {[%clk 0:00:09.7]} 45... Kg5 {[%clk 0:00:10.9]}
46. Rxe6 {[%clk 0:00:09.5]} 46... Qxe6 {[%clk 0:00:11.8]} 47. Bxe4 {[%clk
0:00:08.8]} 47... Qd6 {[%clk 0:00:08.8]} 48. Qg2+ {[%clk 0:00:09.3]} 48... Kf6
{[%clk 0:00:08.6]} 49. Qg6+ {[%clk 0:00:09.6]} 49... Ke5 {[%clk 0:00:08.9]} 50.
Qf5+ {[%clk 0:00:09.4]} 50... Kd4 {[%clk 0:00:08.4]} 51. Bf3 {[%clk 0:00:10]}
51... Qe5 {[%clk 0:00:07.8]} 52. Qd7+ {[%clk 0:00:10.1]} 52... Ke3 {[%clk
0:00:06.8]} 53. Kg2 {[%clk 0:00:09.8]} 53... Qg5+ {[%clk 0:00:06.4]} 54. Bg4
{[%clk 0:00:09.3]} 54... h5 {[%clk 0:00:05.7]} 55. Qe6+ {[%clk 0:00:07.9]} 55...
Kd3 {[%clk 0:00:05.9]} 56. Qd6+ {[%clk 0:00:07.4]} 56... Kc4 {[%clk 0:00:05.5]}
57. Qc6+ {[%clk 0:00:05.1]} 57... Kb4 {[%clk 0:00:05.9]} 58. Qxb6 {[%clk
0:00:05.6]} 58... Qxg4+ {[%clk 0:00:05.4]} 59. Kf2 {[%clk 0:00:06.1]} 59... Qf5
{[%clk 0:00:05.1]} 60. Qd4+ {[%clk 0:00:05]} 60... Kxb5 {[%clk 0:00:06]} 61.
Qb2+ {[%clk 0:00:04.2]} 61... Kc6 {[%clk 0:00:05.8]} 62. Qc3+ {[%clk 0:00:04.3]}
62... Qc5+ {[%clk 0:00:06.1]} 63. Qxc5+ {[%clk 0:00:04]} 63... Kxc5 {[%clk
0:00:07]} 64. Kf3 {[%clk 0:00:04.6]} 64... a4 {[%clk 0:00:07.9]} 65. Kxf4 {[%clk
0:00:05.5]} 65... a3 {[%clk 0:00:08.8]} 66. Kg5 {[%clk 0:00:06.4]} 66... a2
{[%clk 0:00:09.7]} 67. Kxh5 {[%clk 0:00:07.1]} 67... a1=Q {[%clk 0:00:10.6]} 0-1

[Event "*** Titled Tuesday Blitz"]
[Site "Chess.com"]
[Date "2021.02.09"]
[Round "10"]
[White "TeukkaSalama"]
[Black "Gusarov91"]
[Result "1/2-1/2"]
[WhiteElo "2378"]
[BlackElo "2246"]
[TimeControl "180+1"]
[EndTime "11:56:58 PST"]
[Termination "Game drawn - insufficient material"]

1. d4 {[%clk 0:03:00.9]} 1... Nf6 {[%clk 0:02:56]} 2. Bf4 {[%clk 0:03:00.7]}
2... d6 {[%clk 0:02:55.8]} 3. e3 {[%clk 0:03:00.8]} 3... g6 {[%clk 0:02:55.6]}
4. h3 {[%clk 0:02:58.9]} 4... Bg7 {[%clk 0:02:55.8]} 5. Nf3 {[%clk 0:02:59.5]}
5... O-O {[%clk 0:02:56.2]} 6. Be2 {[%clk 0:03:00.2]} 6... c5 {[%clk 0:02:56.8]}
7. c3 {[%clk 0:03:00.2]} 7... Qb6 {[%clk 0:02:56.5]} 8. Qb3 {[%clk 0:02:59.9]}
8... Nbd7 {[%clk 0:02:55]} 9. Nbd2 {[%clk 0:02:55]} 9... Qxb3 {[%clk 0:02:50]}
10. axb3 {[%clk 0:02:54.6]} 10... b6 {[%clk 0:02:50.3]} 11. O-O {[%clk
0:02:50.2]} 11... Bb7 {[%clk 0:02:50.8]} 12. Rfe1 {[%clk 0:02:46.5]} 12... Nd5
{[%clk 0:02:47.4]} 13. Bg3 {[%clk 0:02:44.4]} 13... e5 {[%clk 0:02:47.5]} 14.
Nc4 {[%clk 0:02:18.1]} 14... cxd4 {[%clk 0:02:36.9]} 15. Nxd6 {[%clk 0:02:15.5]}
15... Bc6 {[%clk 0:02:32.8]} 16. exd4 {[%clk 0:02:14.2]} 16... exd4 {[%clk
0:02:32]} 17. Nxd4 {[%clk 0:02:13.6]} 17... Bxd4 {[%clk 0:02:31.6]} 18. cxd4
{[%clk 0:02:13.4]} 18... N7f6 {[%clk 0:02:28.7]} 19. Bf3 {[%clk 0:02:03.8]}
19... Nb4 {[%clk 0:02:24.7]} 20. Bxc6 {[%clk 0:01:44]} 20... Nxc6 {[%clk
0:02:25.6]} 21. Be5 {[%clk 0:01:43.8]} 21... Nd5 {[%clk 0:02:25.1]} 22. Ne4
{[%clk 0:01:11.2]} 22... f6 {[%clk 0:02:24]} 23. Bd6 {[%clk 0:01:09]} 23... Rfd8
{[%clk 0:02:22.1]} 24. Ba3 {[%clk 0:01:07.6]} 24... f5 {[%clk 0:02:12.6]} 25.
Ng5 {[%clk 0:01:01.3]} 25... Nxd4 {[%clk 0:02:13]} 26. Rad1 {[%clk 0:00:49.3]}
26... Nc2 {[%clk 0:02:13.1]} 27. Re2 {[%clk 0:00:37.4]} 27... Nxa3 {[%clk
0:02:11.1]} 28. bxa3 {[%clk 0:00:35.9]} 28... Nf4 {[%clk 0:01:53.6]} 29. Red2
{[%clk 0:00:35.4]} 29... Rxd2 {[%clk 0:01:52.7]} 30. Rxd2 {[%clk 0:00:36.3]}
30... h6 {[%clk 0:01:35]} 31. Nf3 {[%clk 0:00:35.6]} 31... Re8 {[%clk
0:01:31.3]} 32. Rd7 {[%clk 0:00:33.1]} 32... a5 {[%clk 0:01:28.7]} 33. Rb7
{[%clk 0:00:30.7]} 33... Re6 {[%clk 0:01:28.9]} 34. Nd4 {[%clk 0:00:29.9]} 34...
Rd6 {[%clk 0:01:28.8]} 35. Nb5 {[%clk 0:00:29.4]} 35... Rd1+ {[%clk 0:01:27.6]}
36. Kh2 {[%clk 0:00:29]} 36... Rd2 {[%clk 0:01:28.2]} 37. Rxb6 {[%clk
0:00:27.7]} 37... g5 {[%clk 0:01:25.6]} 38. Kg1 {[%clk 0:00:21]} 38... Rd1+
{[%clk 0:01:24.5]} 39. Kh2 {[%clk 0:00:21]} 39... Rd2 {[%clk 0:01:24.6]} 40.
Rxh6 {[%clk 0:00:07.4]} 40... Rxf2 {[%clk 0:01:23.7]} 41. Ra6 {[%clk 0:00:08]}
41... Rxg2+ {[%clk 0:01:23.8]} 42. Kh1 {[%clk 0:00:08.6]} 42... Rb2 {[%clk
0:01:23.1]} 43. Nd4 {[%clk 0:00:07.9]} 43... Nxh3 {[%clk 0:01:12.9]} 44. Nxf5
{[%clk 0:00:07.4]} 44... Rxb3 {[%clk 0:01:13.2]} 45. Rxa5 {[%clk 0:00:07.4]}
45... g4 {[%clk 0:01:11.6]} 46. Ra7 {[%clk 0:00:05.8]} 46... Kf8 {[%clk
0:01:11]} 47. a4 {[%clk 0:00:05.2]} 47... Ng5 {[%clk 0:01:11]} 48. Kg1 {[%clk
0:00:03.7]} 48... Rb2 {[%clk 0:01:10.6]} 49. a5 {[%clk 0:00:03.5]} 49... Nf3+
{[%clk 0:01:10.6]} 50. Kf1 {[%clk 0:00:03.2]} 50... Rb5 {[%clk 0:01:10.7]} 51.
Nd6 {[%clk 0:00:02.1]} 51... Rb1+ {[%clk 0:01:09.9]} 52. Kf2 {[%clk 0:00:01.9]}
52... Ne5 {[%clk 0:01:09.4]} 53. Kg3 {[%clk 0:00:02.1]} 53... Rb3+ {[%clk
0:01:08.8]} 54. Kf4 {[%clk 0:00:02.5]} 54... g3 {[%clk 0:01:07.2]} 55. Ra8+
{[%clk 0:00:02.8]} 55... Ke7 {[%clk 0:01:04.2]} 56. Nf5+ {[%clk 0:00:03.7]}
56... Kf6 {[%clk 0:01:04.4]} 57. a6 {[%clk 0:00:04.6]} 57... Rb4+ {[%clk
0:01:04.2]} 58. Kxg3 {[%clk 0:00:04]} 58... Kxf5 {[%clk 0:01:04.1]} 59. a7
{[%clk 0:00:04.9]} 59... Rb3+ {[%clk 0:01:03.4]} 60. Kg2 {[%clk 0:00:04.3]}
60... Ra3 {[%clk 0:00:58.3]} 61. Rf8+ {[%clk 0:00:03.8]} 61... Ke4 {[%clk
0:00:57.4]} 62. a8=Q+ {[%clk 0:00:04.7]} 62... Rxa8 {[%clk 0:00:58]} 63. Rxa8
{[%clk 0:00:05.6]} 63... Nd3 {[%clk 0:00:58.6]} 64. Re8+ {[%clk 0:00:05.5]}
64... Kf4 {[%clk 0:00:58.5]} 65. Rf8+ {[%clk 0:00:05.3]} 65... Ke4 {[%clk
0:00:59]} 66. Kg3 {[%clk 0:00:05.3]} 66... Ne5 {[%clk 0:00:58.8]} 67. Re8 {[%clk
0:00:05.5]} 67... Kf5 {[%clk 0:00:59.3]} 68. Ra8 {[%clk 0:00:05]} 68... Ke4
{[%clk 0:00:59.6]} 69. Ra5 {[%clk 0:00:03.9]} 69... Kf5 {[%clk 0:00:56.8]} 70.
Ra4 {[%clk 0:00:04.2]} 70... Nd3 {[%clk 0:00:53.4]} 71. Kf3 {[%clk 0:00:02.6]}
71... Ne5+ {[%clk 0:00:53.4]} 72. Ke3 {[%clk 0:00:02.2]} 72... Ng4+ {[%clk
0:00:53.4]} 73. Kd3 {[%clk 0:00:02.7]} 73... Ne5+ {[%clk 0:00:53.6]} 74. Kc3
{[%clk 0:00:03.6]} 74... Ke6 {[%clk 0:00:53.2]} 75. Ra5 {[%clk 0:00:04.5]} 75...
Nc6 {[%clk 0:00:53]} 76. Ra6 {[%clk 0:00:04.6]} 76... Kd5 {[%clk 0:00:53.6]} 77.
Kb3 {[%clk 0:00:04.1]} 77... Nd4+ {[%clk 0:00:53.3]} 78. Kb4 {[%clk 0:00:04]}
78... Nc6+ {[%clk 0:00:52.9]} 79. Kb5 {[%clk 0:00:04.1]} 79... Nd4+ {[%clk
0:00:53.3]} 80. Kb6 {[%clk 0:00:03.9]} 80... Kc4 {[%clk 0:00:53.5]} 81. Ra4+
{[%clk 0:00:03.7]} 81... Kd5 {[%clk 0:00:53.8]} 82. Ra5+ {[%clk 0:00:03.5]}
82... Kc4 {[%clk 0:00:53.8]} 83. Ra4+ {[%clk 0:00:03.4]} 83... Kd5 {[%clk
0:00:54.1]} 84. Ra1 {[%clk 0:00:04.1]} 84... Nb3 {[%clk 0:00:53.6]} 85. Rb1
{[%clk 0:00:03.8]} 85... Nd4 {[%clk 0:00:53.4]} 86. Rd1 {[%clk 0:00:03.7]} 86...
Kc4 {[%clk 0:00:54]} 87. Kc7 {[%clk 0:00:03.8]} 87... Kd5 {[%clk 0:00:54.1]} 88.
Rc1 {[%clk 0:00:04.2]} 88... Nb3 {[%clk 0:00:53]} 89. Rc6 {[%clk 0:00:03.1]}
89... Nd4 {[%clk 0:00:52.8]} 90. Rd6+ {[%clk 0:00:02.8]} 90... Kc5 {[%clk
0:00:52.7]} 91. Rd8 {[%clk 0:00:03.2]} 91... Ne6+ {[%clk 0:00:52.6]} 92. Kc8
{[%clk 0:00:04.1]} 92... Nxd8 {[%clk 0:00:53.4]} 1/2-1/2